[Event "FIDE World Rapid Chess Championship 2021"]
[White "Klekowski, Maciej"]
[Black "Holm, Kristian Stuvik"]
[WhiteFideId "1132717"]
[BlackFideId "1508083"]
[WhiteElo "2528"]
[BlackElo "2409"]
[Result "1/2-1/2"]
[Round "08"]
[TimeControl "900+10"]
[Date "2021.12.27"]
[WhiteClock "0:06:16"]
[BlackClock "0:03:37"]

1. c4 {[%clk 0:15:00]}  e6 {[%clk 0:15:00]} 2. Nf3 {[%clk 0:15:00]}  d5 {[%clk 0:15:00]} 3. b3 {[%clk 0:14:53]}  d4 {[%clk 0:15:29]} 4. e3 {[%clk 0:14:53]}  Nc6 {[%clk 0:15:29]} 5. exd4 {[%clk 0:14:53]}  Nxd4 {[%clk 0:15:29]} 6. Bb2 {[%clk 0:14:53]}  Bc5 {[%clk 0:15:29]} 7. b4 {[%clk 0:14:53]}  Nxf3+ {[%clk 0:15:29]} 8. Qxf3 {[%clk 0:14:53]}  Bd4 {[%clk 0:15:29]} 9. Bxd4 {[%clk 0:14:53]}  Qxd4 {[%clk 0:15:29]} 10. Nc3 {[%clk 0:14:53]}  Nf6 {[%clk 0:15:29]} 11. Qe3 {[%clk 0:14:53]}  Qxe3+ {[%clk 0:15:29]} 12. dxe3 {[%clk 0:13:21]}  Ke7 {[%clk 0:14:00]} 13. O-O-O {[%clk 0:13:21]}  e5 {[%clk 0:13:37]} 14. Be2 {[%clk 0:12:06]}  Be6 {[%clk 0:09:57]} 15. f4 {[%clk 0:12:06]}  c6 {[%clk 0:10:01]} 16. Kb2 {[%clk 0:09:48]}  Rhd8 {[%clk 0:10:01]} 17. a3 {[%clk 0:09:48]}  Rxd1 {[%clk 0:08:24]} 18. Rxd1 {[%clk 0:08:52]}  Rd8 {[%clk 0:08:24]} 19. Rxd8 {[%clk 0:09:01]}  Kxd8 {[%clk 0:08:24]} 20. c5 {[%clk 0:09:01]}  Nd5 {[%clk 0:08:24]} 21. Nxd5 {[%clk 0:09:01]}  Bxd5 {[%clk 0:08:24]} 22. g3 {[%clk 0:08:24]}  f6 {[%clk 0:07:31]} 23. Bg4 {[%clk 0:08:24]}  Kc7 {[%clk 0:07:31]} 24. Kc3 {[%clk 0:08:24]}  h6 {[%clk 0:07:31]} 25. Kd3 {[%clk 0:08:24]}  b6 {[%clk 0:07:31]} 26. fxe5 {[%clk 0:08:18]}  fxe5 {[%clk 0:05:41]} 27. Bf5 {[%clk 0:08:18]}  a5 {[%clk 0:05:41]} 28. Kc3 {[%clk 0:08:18]}  axb4+ {[%clk 0:05:41]} 29. Kxb4 {[%clk 0:07:53]}  b5 {[%clk 0:04:23]} 30. a4 {[%clk 0:07:53]}  bxa4 {[%clk 0:04:23]} 31. Kxa4 {[%clk 0:07:53]}  Bf3 {[%clk 0:04:23]} 32. Be6 {[%clk 0:07:53]}  Be4 {[%clk 0:04:23]} 33. Kb4 {[%clk 0:07:53]}  Kd8 {[%clk 0:03:57]} 34. Bc4 {[%clk 0:06:32]}  Kc7 {[%clk 0:03:57]} 35. h4 {[%clk 0:06:32]}  Kd7 {[%clk 0:03:57]} 36. Kc3 {[%clk 0:06:32]}  Ke7 {[%clk 0:03:57]} 37. Bd3 {[%clk 0:06:32]}  Bd5 {[%clk 0:03:57]} 38. Bf5 {[%clk 0:06:32]}  Kd8 {[%clk 0:03:57]} 39. Kd3 {[%clk 0:06:32]}  Ke7 {[%clk 0:03:57]} 40. Kc3 {[%clk 0:06:16]}  Kd8 {[%clk 0:03:37]} 41. Bd3 {[%clk 0:06:16]}  Kc7 {[%clk 0:03:37]} 42. Kb4 {[%clk 0:06:16]} 1/2-1/2


[Site "http://www.Chess.com"]

[Event "FIDE World Rapid Chess Championship 2021"]
[White "Sankalp, Gupta"]
[Black "Murzin, Volodar"]
[WhiteFideId "5097010"]
[BlackFideId "44155573"]
[WhiteElo "2266"]
[BlackElo "2523"]
[Result "1-0"]
[Round "08"]
[TimeControl "900+10"]
[Date "2021.12.27"]
[WhiteClock "0:08:29"]
[BlackClock "0:02:57"]

1. d4 {[%clk 0:15:00]}  Nf6 {[%clk 0:15:00]} 2. Nf3 {[%clk 0:15:00]}  g6 {[%clk 0:15:00]} 3. Nc3 {[%clk 0:15:00]}  d6 {[%clk 0:14:21]} 4. e4 {[%clk 0:15:16]}  Bg4 {[%clk 0:14:21]} 5. h3 {[%clk 0:15:16]}  Bxf3 {[%clk 0:14:21]} 6. Qxf3 {[%clk 0:15:16]}  Nbd7 {[%clk 0:14:21]} 7. Be3 {[%clk 0:15:16]}  c6 {[%clk 0:14:21]} 8. g4 {[%clk 0:15:16]}  Bg7 {[%clk 0:14:21]} 9. O-O-O {[%clk 0:15:16]}  Qc7 {[%clk 0:14:21]} 10. g5 {[%clk 0:15:16]}  Nh5 {[%clk 0:14:21]} 11. h4 {[%clk 0:15:16]}  e5 {[%clk 0:14:21]} 12. d5 {[%clk 0:15:16]}  c5 {[%clk 0:14:08]} 13. Ne2 {[%clk 0:14:16]}  c4 {[%clk 0:10:31]} 14. Bh3 {[%clk 0:13:31]}  Nc5 {[%clk 0:10:31]} 15. Bg4 {[%clk 0:13:31]}  Nf4 {[%clk 0:10:31]} 16. Nxf4 {[%clk 0:13:04]}  exf4 {[%clk 0:06:54]} 17. Bxf4 {[%clk 0:12:16]}  Nd3+ {[%clk 0:06:59]} 18. cxd3 {[%clk 0:09:21]}  cxd3+ {[%clk 0:06:59]} 19. Kd2 {[%clk 0:09:21]}  Qa5+ {[%clk 0:06:59]} 20. Kxd3 {[%clk 0:09:21]}  Qb5+ {[%clk 0:03:39]} 21. Kd2 {[%clk 0:08:29]}  O-O {[%clk 0:03:39]} 22. Qb3 {[%clk 0:08:29]}  Qa5+ {[%clk 0:03:39]} 23. Kc2 {[%clk 0:08:29]}  Rfe8 {[%clk 0:03:39]} 24. f3 {[%clk 0:08:29]}  Bf8 {[%clk 0:02:57]} 1-0


[Site "http://www.Chess.com"]

[Event "FIDE World Rapid Chess Championship 2021"]
[White "Klimkowski, Jan"]
[Black "Michalik, Peter"]
[WhiteFideId "21856222"]
[BlackFideId "14907526"]
[WhiteElo "2211"]
[BlackElo "2515"]
[Result "1/2-1/2"]
[Round "08"]
[TimeControl "900+10"]
[Date "2021.12.27"]
[WhiteClock "0:03:12"]
[BlackClock "0:03:12"]

1. e4 {[%clk 0:15:00]}  e5 {[%clk 0:15:00]} 2. Nf3 {[%clk 0:15:00]}  Nc6 {[%clk 0:15:00]} 3. Bb5 {[%clk 0:15:00]}  a6 {[%clk 0:15:00]} 4. Ba4 {[%clk 0:15:00]}  Nf6 {[%clk 0:15:00]} 5. O-O {[%clk 0:15:00]}  Be7 {[%clk 0:15:00]} 6. Re1 {[%clk 0:15:00]}  b5 {[%clk 0:15:00]} 7. Bb3 {[%clk 0:15:00]}  O-O {[%clk 0:15:00]} 8. c3 {[%clk 0:16:15]}  d6 {[%clk 0:16:17]} 9. h3 {[%clk 0:16:15]}  Nb8 {[%clk 0:16:17]} 10. d4 {[%clk 0:16:15]}  Nbd7 {[%clk 0:16:17]} 11. Nbd2 {[%clk 0:16:15]}  Bb7 {[%clk 0:16:17]} 12. Bc2 {[%clk 0:16:15]}  Re8 {[%clk 0:16:17]} 13. Nf1 {[%clk 0:16:15]}  Bf8 {[%clk 0:16:17]} 14. Ng3 {[%clk 0:16:15]}  g6 {[%clk 0:16:17]} 15. Bd2 {[%clk 0:16:15]}  c5 {[%clk 0:16:17]} 16. d5 {[%clk 0:16:15]}  c4 {[%clk 0:16:17]} 17. b4 {[%clk 0:16:15]}  cxb3 {[%clk 0:16:17]} 18. axb3 {[%clk 0:16:15]}  Qc7 {[%clk 0:16:17]} 19. Ne2 {[%clk 0:16:15]}  Nc5 {[%clk 0:16:17]} 20. Nc1 {[%clk 0:15:30]}  Bc8 {[%clk 0:14:22]} 21. b4 {[%clk 0:15:30]}  Ncd7 {[%clk 0:14:22]} 22. Nb3 {[%clk 0:15:30]}  Nb6 {[%clk 0:14:22]} 23. Na5 {[%clk 0:15:30]}  Bd7 {[%clk 0:14:22]} 24. Bd3 {[%clk 0:15:30]}  Bg7 {[%clk 0:14:22]} 25. Rc1 {[%clk 0:14:43]}  Nc4 {[%clk 0:13:46]} 26. Nxc4 {[%clk 0:14:43]}  bxc4 {[%clk 0:13:46]} 27. Bf1 {[%clk 0:14:43]}  a5 {[%clk 0:13:46]} 28. bxa5 {[%clk 0:13:23]}  Rxa5 {[%clk 0:13:08]} 29. Ra1 {[%clk 0:13:23]}  Rea8 {[%clk 0:13:08]} 30. Rxa5 {[%clk 0:13:23]}  Rxa5 {[%clk 0:13:08]} 31. Qb1 {[%clk 0:13:23]}  Nh5 {[%clk 0:13:08]} 32. Qb4 {[%clk 0:13:04]}  Ra4 {[%clk 0:11:47]} 33. Qb2 {[%clk 0:13:04]}  Nf4 {[%clk 0:11:47]} 34. Ra1 {[%clk 0:13:04]}  Rxa1 {[%clk 0:10:26]} 35. Qxa1 {[%clk 0:12:17]}  h6 {[%clk 0:10:26]} 36. Qa6 {[%clk 0:12:17]}  f5 {[%clk 0:10:26]} 37. exf5 {[%clk 0:12:17]}  Bxf5 {[%clk 0:08:54]} 38. Qxc4 {[%clk 0:11:46]}  Qxc4 {[%clk 0:05:52]} 39. Bxc4 {[%clk 0:11:46]}  Be4 {[%clk 0:05:52]} 40. Bxf4 {[%clk 0:11:46]}  exf4 {[%clk 0:05:52]} 41. Nd4 {[%clk 0:11:46]}  Bxd4 {[%clk 0:08:08]} 42. cxd4 {[%clk 0:07:48]}  g5 {[%clk 0:08:08]} 43. f3 {[%clk 0:07:48]}  Bg6 {[%clk 0:08:08]} 44. Kf2 {[%clk 0:07:48]}  Kf8 {[%clk 0:08:08]} 45. Ke2 {[%clk 0:07:48]}  Ke7 {[%clk 0:08:08]} 46. Bd3 {[%clk 0:07:48]}  Bf7 {[%clk 0:08:08]} 47. Be4 {[%clk 0:06:51]}  Kd8 {[%clk 0:07:53]} 48. Kd3 {[%clk 0:06:51]}  Kc7 {[%clk 0:07:53]} 49. Kc4 {[%clk 0:06:51]}  Kb6 {[%clk 0:07:53]} 50. Kb4 {[%clk 0:06:51]}  h5 {[%clk 0:07:55]} 51. Bd3 {[%clk 0:03:52]}  Bxd5 {[%clk 0:06:29]} 52. Bg6 {[%clk 0:03:52]}  h4 {[%clk 0:06:29]} 53. Bd3 {[%clk 0:03:52]}  Be6 {[%clk 0:06:29]} 54. Bc4 {[%clk 0:03:52]}  Bf5 {[%clk 0:04:45]} 55. Be2 {[%clk 0:03:28]}  Kc6 {[%clk 0:04:45]} 56. Kc3 {[%clk 0:03:28]}  Bg6 {[%clk 0:04:45]} 57. Bf1 {[%clk 0:03:12]}  Bf5 {[%clk 0:03:12]} 1/2-1/2


[Site "http://www.Chess.com"]

[Event "FIDE World Rapid Chess Championship 2021"]
[White "Yuffa, Daniil"]
[Black "Van Foreest, Lucas"]
[WhiteFideId "24131423"]
[BlackFideId "1039792"]
[WhiteElo "2514"]
[BlackElo "2374"]
[Result "1-0"]
[Round "08"]
[TimeControl "900+10"]
[Date "2021.12.27"]
[WhiteClock "0:06:30"]
[BlackClock "0:06:30"]

1. d4 {[%clk 0:00:00]}  Nf6 {[%clk 0:15:10]} 2. c4 {[%clk 0:00:00]}  e6 {[%clk 0:15:10]} 3. g3 {[%clk 0:00:00]}  d5 {[%clk 0:15:10]} 4. Bg2 {[%clk 0:00:00]}  Be7 {[%clk 0:15:10]} 5. Nf3 {[%clk 0:00:00]}  O-O {[%clk 0:15:10]} 6. Qc2 {[%clk 0:00:00]}  c5 {[%clk 0:15:10]} 7. dxc5 {[%clk 0:00:00]}  Qa5+ {[%clk 0:15:10]} 8. Nbd2 {[%clk 0:00:00]}  Qxc5 {[%clk 0:15:10]} 9. a3 {[%clk 0:00:00]}  Qc7 {[%clk 0:15:10]} 10. O-O {[%clk 0:00:00]}  e5 {[%clk 0:15:10]} 11. b4 {[%clk 0:00:00]}  Bg4 {[%clk 0:15:10]} 12. Bb2 {[%clk 0:00:00]}  Nbd7 {[%clk 0:15:10]} 13. Rac1 {[%clk 0:00:00]}  d4 {[%clk 0:15:10]} 14. Rfe1 {[%clk 0:00:00]}  Rfd8 {[%clk 0:16:05]} 15. c5 {[%clk 0:15:04]}  Nf8 {[%clk 0:16:05]} 16. h3 {[%clk 0:13:42]}  Be6 {[%clk 0:15:00]} 17. e3 {[%clk 0:13:42]}  d3 {[%clk 0:15:00]} 18. Qb1 {[%clk 0:13:42]}  Ng6 {[%clk 0:13:34]} 19. e4 {[%clk 0:13:01]}  a5 {[%clk 0:13:34]} 20. Ng5 {[%clk 0:13:09]}  Bc8 {[%clk 0:11:46]} 21. Qa2 {[%clk 0:11:45]}  Nh8 {[%clk 0:10:31]} 22. Qc4 {[%clk 0:11:45]}  axb4 {[%clk 0:10:31]} 23. axb4 {[%clk 0:11:45]}  b6 {[%clk 0:09:53]} 24. f4 {[%clk 0:09:22]}  Ba6 {[%clk 0:09:47]} 25. b5 {[%clk 0:07:28]}  Qxc5+ {[%clk 0:09:47]} 26. Qxc5 {[%clk 0:07:28]}  Bxc5+ {[%clk 0:09:47]} 27. Rxc5 {[%clk 0:07:28]}  bxc5 {[%clk 0:09:47]} 28. bxa6 {[%clk 0:07:28]}  exf4 {[%clk 0:09:47]} 29. e5 {[%clk 0:07:28]}  Nd5 {[%clk 0:09:47]} 30. e6 {[%clk 0:07:28]}  fxe6 {[%clk 0:09:06]} 31. Nxe6 {[%clk 0:06:33]}  Rd6 {[%clk 0:09:06]} 32. Bxd5 {[%clk 0:06:33]}  Rxd5 {[%clk 0:09:06]} 33. Nc7 {[%clk 0:06:33]}  Rxa6 {[%clk 0:07:24]} 34. Nxd5 {[%clk 0:06:28]}  Ng6 {[%clk 0:07:24]} 35. gxf4 {[%clk 0:06:28]}  Kf8 {[%clk 0:07:24]} 36. Re3 {[%clk 0:06:28]}  Ra2 {[%clk 0:07:24]} 37. Bc3 {[%clk 0:06:28]}  c4 {[%clk 0:07:24]} 38. f5 {[%clk 0:06:28]}  Nh8 {[%clk 0:07:24]} 39. Bb4+ {[%clk 0:06:30]}  Kg8 {[%clk 0:06:30]} 40. Re8+ {[%clk 0:06:30]}  Kf7 {[%clk 0:06:30]} 41. Rf8# {[%clk 0:06:30]} 1-0


[Site "http://www.Chess.com"]

[Event "FIDE World Rapid Chess Championship 2021"]
[White "Czarnota, Pawel"]
[Black "Szpar, Milosz"]
[WhiteFideId "1121219"]
[BlackFideId "1184989"]
[WhiteElo "2511"]
[BlackElo "2315"]
[Result "1-0"]
[Round "08"]
[TimeControl "900+10"]
[Date "2021.12.27"]
[WhiteClock "0:03:53"]
[BlackClock "0:00:57"]

1. e4 {[%clk 0:01:48]}  c5 {[%clk 0:02:38]} 2. Nf3 {[%clk 0:01:48]}  d6 {[%clk 0:02:38]} 3. d4 {[%clk 0:01:48]}  Nf6 {[%clk 0:02:38]} 4. Nc3 {[%clk 0:01:48]}  cxd4 {[%clk 0:02:38]} 5. Nxd4 {[%clk 0:01:48]}  Nc6 {[%clk 0:02:38]} 6. f3 {[%clk 0:01:48]}  e5 {[%clk 0:02:38]} 7. Nb3 {[%clk 0:01:48]}  Be7 {[%clk 0:02:38]} 8. Be3 {[%clk 0:01:48]}  O-O {[%clk 0:02:38]} 9. Qd2 {[%clk 0:01:48]}  a5 {[%clk 0:02:38]} 10. Bb5 {[%clk 0:01:48]}  Be6 {[%clk 0:02:38]} 11. O-O-O {[%clk 0:01:48]}  Na7 {[%clk 0:02:38]} 12. Bxa7 {[%clk 0:01:48]}  Rxa7 {[%clk 0:02:38]} 13. a4 {[%clk 0:01:48]}  Qb6 {[%clk 0:14:31]} 14. Kb1 {[%clk 0:15:55]}  Raa8 {[%clk 0:14:31]} 15. g4 {[%clk 0:15:55]}  Rfd8 {[%clk 0:14:31]} 16. g5 {[%clk 0:15:05]}  Nh5 {[%clk 0:14:02]} 17. Nd5 {[%clk 0:13:02]}  Bxd5 {[%clk 0:13:04]} 18. exd5 {[%clk 0:13:02]}  Nf4 {[%clk 0:13:04]} 19. h4 {[%clk 0:13:02]}  Rdc8 {[%clk 0:13:04]} 20. Rhe1 {[%clk 0:13:02]}  Qd8 {[%clk 0:11:33]} 21. Re4 {[%clk 0:13:11]}  f6 {[%clk 0:08:20]} 22. Rxf4 {[%clk 0:13:10]}  exf4 {[%clk 0:08:20]} 23. Nd4 {[%clk 0:11:51]}  fxg5 {[%clk 0:07:21]} 24. Ne6 {[%clk 0:11:51]}  Qb6 {[%clk 0:07:21]} 25. hxg5 {[%clk 0:11:51]}  Qe3 {[%clk 0:05:15]} 26. Qh2 {[%clk 0:11:48]}  Qxf3 {[%clk 0:05:15]} 27. Rh1 {[%clk 0:11:48]}  h6 {[%clk 0:02:34]} 28. gxh6 {[%clk 0:12:03]}  g5 {[%clk 0:02:34]} 29. h7+ {[%clk 0:10:52]}  Kf7 {[%clk 0:02:41]} 30. Be2 {[%clk 0:09:16]}  Qg3 {[%clk 0:02:47]} 31. Qh5+ {[%clk 0:06:05]}  Kf6 {[%clk 0:01:33]} 32. Bd3 {[%clk 0:06:05]}  Ke5 {[%clk 0:01:33]} 33. Qf7 {[%clk 0:06:05]}  Bf6 {[%clk 0:01:33]} 34. Rh6 {[%clk 0:03:53]}  Bh8 {[%clk 0:00:57]} 35. Qf5# {[%clk 0:03:53]} 1-0


[Site "http://www.Chess.com"]

[Event "FIDE World Rapid Chess Championship 2021"]
[White "Harikrishna, Pentala"]
[Black "Peng, Li Min"]
[WhiteFideId "5007003"]
[BlackFideId "14112620"]
[WhiteElo "2705"]
[BlackElo "2411"]
[Result "1-0"]
[Round "08"]
[TimeControl "900+10"]
[Date "2021.12.27"]
[WhiteClock "0:07:39"]
[BlackClock "0:00:00"]

1. e4 {[%clk 0:14:50]}  d6 {[%clk 0:15:10]} 2. d4 {[%clk 0:14:50]}  Nf6 {[%clk 0:15:10]} 3. Nc3 {[%clk 0:14:50]}  e5 {[%clk 0:15:10]} 4. Nf3 {[%clk 0:14:50]}  Nbd7 {[%clk 0:15:10]} 5. Be2 {[%clk 0:14:50]}  Be7 {[%clk 0:15:10]} 6. g4 {[%clk 0:14:50]}  h6 {[%clk 0:15:10]} 7. Rg1 {[%clk 0:14:50]}  c6 {[%clk 0:15:10]} 8. a4 {[%clk 0:14:50]}  Qc7 {[%clk 0:12:48]} 9. Be3 {[%clk 0:15:30]}  b6 {[%clk 0:12:02]} 10. h4 {[%clk 0:13:59]}  Bb7 {[%clk 0:12:02]} 11. a5 {[%clk 0:13:59]}  bxa5 {[%clk 0:10:25]} 12. g5 {[%clk 0:13:12]}  hxg5 {[%clk 0:10:25]} 13. hxg5 {[%clk 0:13:12]}  Nh5 {[%clk 0:10:25]} 14. Qd2 {[%clk 0:12:42]}  g6 {[%clk 0:08:47]} 15. O-O-O {[%clk 0:09:54]}  Nf8 {[%clk 0:05:04]} 16. d5 {[%clk 0:11:15]}  c5 {[%clk 0:05:04]} 17. Bb5+ {[%clk 0:11:15]}  Nd7 {[%clk 0:05:04]} 18. Nxe5 {[%clk 0:11:15]}  dxe5 {[%clk 0:05:04]} 19. d6 {[%clk 0:11:15]}  Bxd6 {[%clk 0:03:28]} 20. Qxd6 {[%clk 0:10:49]}  O-O-O {[%clk 0:03:28]} 21. Qe7 {[%clk 0:10:49]}  Nb6 {[%clk 0:03:20]} 22. Qxc5 {[%clk 0:08:06]}  Qxc5 {[%clk 0:03:20]} 23. Bxc5 {[%clk 0:08:06]}  Rxd1+ {[%clk 0:03:20]} 24. Rxd1 {[%clk 0:08:06]}  f6 {[%clk 0:00:10]} 25. Rd6 {[%clk 0:09:32]}  fxg5 {[%clk 0:00:10]} 26. Rxg6 {[%clk 0:09:32]}  Nd7 {[%clk 0:00:10]} 27. Bxd7+ {[%clk 0:09:32]}  Kxd7 {[%clk 0:00:10]} 28. Rxg5 {[%clk 0:07:39]}  Ke6 {[%clk 0:00:00]} 29. f3 {[%clk 0:07:39]}  Nf6 {[%clk 0:00:00]} 30. Rg7 {[%clk 0:07:39]}  Nd7 {[%clk 0:00:00]} 31. Re7+ {[%clk 0:07:39]} 1-0


[Site "http://www.Chess.com"]

[Event "FIDE World Rapid Chess Championship 2021"]
[White "Sadzikowski, Daniel"]
[Black "Vakhidov, Jakhongir"]
[WhiteFideId "1132253"]
[BlackFideId "14201801"]
[WhiteElo "2414"]
[BlackElo "2566"]
[Result "0-1"]
[Round "08"]
[TimeControl "900+10"]
[Date "2021.12.27"]
[WhiteClock "0:00:50"]
[BlackClock "0:00:36"]

1. Nf3 {[%clk 0:00:14]}  g6 {[%clk 0:06:13]} 2. e4 {[%clk 0:00:14]}  c5 {[%clk 0:06:13]} 3. c4 {[%clk 0:00:14]}  Bg7 {[%clk 0:06:13]} 4. d4 {[%clk 0:00:14]}  cxd4 {[%clk 0:06:13]} 5. Nxd4 {[%clk 0:00:14]}  Nc6 {[%clk 0:06:13]} 6. Be3 {[%clk 0:00:14]}  Qb6 {[%clk 0:06:13]} 7. Nb3 {[%clk 0:00:14]}  Qd8 {[%clk 0:06:13]} 8. Nc3 {[%clk 0:00:14]}  Bxc3+ {[%clk 0:06:13]} 9. bxc3 {[%clk 0:00:14]}  Nf6 {[%clk 0:06:13]} 10. f3 {[%clk 0:00:14]}  d6 {[%clk 0:06:13]} 11. Be2 {[%clk 0:00:14]}  O-O {[%clk 0:06:13]} 12. O-O {[%clk 0:00:14]}  b6 {[%clk 0:06:13]} 13. Nd4 {[%clk 0:14:13]}  Na5 {[%clk 0:16:50]} 14. Nb3 {[%clk 0:11:20]}  Nc6 {[%clk 0:16:57]} 15. Nd4 {[%clk 0:11:20]}  Qc7 {[%clk 0:17:03]} 16. Nb5 {[%clk 0:11:02]}  Qd7 {[%clk 0:17:03]} 17. Bg5 {[%clk 0:10:30]}  Rd8 {[%clk 0:13:39]} 18. Qe1 {[%clk 0:10:30]}  Ba6 {[%clk 0:13:39]} 19. Qh4 {[%clk 0:10:30]}  Ne8 {[%clk 0:12:25]} 20. f4 {[%clk 0:08:48]}  f6 {[%clk 0:12:25]} 21. Bh6 {[%clk 0:08:48]}  Qe6 {[%clk 0:12:25]} 22. f5 {[%clk 0:08:41]}  Qf7 {[%clk 0:07:41]} 23. fxg6 {[%clk 0:08:41]}  hxg6 {[%clk 0:07:41]} 24. Rf3 {[%clk 0:08:41]}  Bc8 {[%clk 0:07:25]} 25. Rg3 {[%clk 0:06:14]}  Ne5 {[%clk 0:07:25]} 26. Rf1 {[%clk 0:06:14]}  Qh7 {[%clk 0:06:40]} 27. Qf4 {[%clk 0:04:32]}  Kh8 {[%clk 0:06:20]} 28. h4 {[%clk 0:03:46]}  Be6 {[%clk 0:06:20]} 29. Nd4 {[%clk 0:03:46]}  Bg8 {[%clk 0:01:01]} 30. Nf3 {[%clk 0:02:23]}  Nc7 {[%clk 0:01:01]} 31. Nxe5 {[%clk 0:00:29]}  dxe5 {[%clk 0:01:04]} 32. Qc1 {[%clk 0:00:29]}  Ne6 {[%clk 0:01:04]} 33. Qe3 {[%clk 0:00:29]}  Nc5 {[%clk 0:01:04]} 34. h5 {[%clk 0:00:29]}  g5 {[%clk 0:01:04]} 35. Bxg5 {[%clk 0:00:29]}  Nxe4 {[%clk 0:01:04]} 36. Bh4 {[%clk 0:00:29]}  Nxg3 {[%clk 0:01:04]} 37. Qxg3 {[%clk 0:00:29]}  Qg7 {[%clk 0:01:04]} 38. Qe3 {[%clk 0:00:29]}  Bh7 {[%clk 0:01:04]} 39. Rf3 {[%clk 0:00:29]}  Rg8 {[%clk 0:01:04]} 40. Qf2 {[%clk 0:00:29]}  Raf8 {[%clk 0:00:54]} 41. c5 {[%clk 0:00:33]}  Qh6 {[%clk 0:00:54]} 42. cxb6 {[%clk 0:00:33]}  axb6 {[%clk 0:00:54]} 43. Qxb6 {[%clk 0:00:33]}  Be4 {[%clk 0:00:54]} 44. Rg3 {[%clk 0:00:33]}  Rxg3 {[%clk 0:00:54]} 45. Bxg3 {[%clk 0:00:33]}  Rg8 {[%clk 0:00:54]} 46. Qf2 {[%clk 0:00:33]}  Qc1+ {[%clk 0:00:54]} 47. Kh2 {[%clk 0:00:33]}  Qxc3 {[%clk 0:00:54]} 48. Bf1 {[%clk 0:00:33]}  Qc1 {[%clk 0:00:54]} 49. a4 {[%clk 0:00:45]}  Qd1 {[%clk 0:00:14]} 50. Qe2 {[%clk 0:00:45]}  Qxe2 {[%clk 0:00:14]} 51. Bxe2 {[%clk 0:00:45]}  Ra8 {[%clk 0:00:14]} 52. Bb5 {[%clk 0:00:45]}  Bc2 {[%clk 0:00:14]} 53. Bc6 {[%clk 0:00:45]}  Rc8 {[%clk 0:00:14]} 54. Bb5 {[%clk 0:00:45]}  e4 {[%clk 0:00:14]} 55. Bf2 {[%clk 0:00:45]}  Bd3 {[%clk 0:00:14]} 56. Bd7 {[%clk 0:00:45]}  Rc2 {[%clk 0:00:14]} 57. Kg3 {[%clk 0:00:45]}  Ra2 {[%clk 0:00:14]} 58. Bc5 {[%clk 0:00:45]}  Kg7 {[%clk 0:00:14]} 59. Be3 {[%clk 0:00:34]}  Bf1 {[%clk 0:00:26]} 60. h6+ {[%clk 0:00:34]}  Kh8 {[%clk 0:00:26]} 61. Kf4 {[%clk 0:00:34]}  Bxg2 {[%clk 0:00:26]} 62. Bc5 {[%clk 0:00:34]}  e5+ {[%clk 0:00:26]} 63. Kg3 {[%clk 0:00:34]}  Bf3 {[%clk 0:00:26]} 64. Be7 {[%clk 0:00:34]}  Rg2+ {[%clk 0:00:26]} 65. Kh3 {[%clk 0:00:34]}  Rg6 {[%clk 0:00:26]} 66. Bf8 {[%clk 0:00:34]}  e3 {[%clk 0:00:26]} 67. Bf5 {[%clk 0:00:34]}  e2 {[%clk 0:00:26]} 68. Bxg6 {[%clk 0:00:34]}  e1=Q {[%clk 0:00:26]} 69. Bg7+ {[%clk 0:00:34]}  Kg8 {[%clk 0:00:26]} 70. Bxf6 {[%clk 0:00:50]}  Qh1+ {[%clk 0:00:36]} 71. Kg3 {[%clk 0:00:50]}  Qg2+ {[%clk 0:00:36]} 0-1


[Site "http://www.Chess.com"]